fUSD/lending_fUSD_20240803
["ID","MTS","AMOUNT","RATE_DAILY","PERIOD"]
[334045062,1722703846473,-1805.35167502,0.00011,2]
[334045064,1722703846486,-4030.75897368,0.00011,2]
[334045067,1722703846497,-1513.3,0.00011,2]
[334045069,1722703846509,-545.94094677,0.00011,2]
[334045071,1722703846524,-19733.16388008,0.00011,2]
[334045074,1722703846535,-264.37005527,0.00011,2]
[334045076,1722703846546,-555.0,0.00011,2]
[334045078,1722703846557,-1583.93695145,0.00011,2]
[334045080,1722703846568,-3258.8,0.00011,2]
[334045082,1722703846579,-389.71569304,0.00011,2]
[334045084,1722703846591,-12513.06937776,0.00011,2]
[334045086,1722703846602,-300.025825,0.00011,2]
[334045089,1722703846613,-968.49131176,0.00011,2]
[334045091,1722703846628,-668085.44801505,0.00011,2]
[334045093,1722703846639,-360.08234564,0.00011,2]
[334045095,1722703846651,-904.64662748,0.00011,2]
[334045098,1722703846663,-914.18041574,0.00011,2]
[334045101,1722703846682,-2136.19702433,0.00011,2]
[334045103,1722703846693,-866.3,0.00011,2]
[334045105,1722703846704,-1795.36741921,0.00011,2]
[334045435,1722703872514,849.77,8.907e-05,2]
[334045436,1722703918846,1309.25794067,8.907e-05,2]
[334045437,1722703970717,534.12654164,8.907e-05,2]
[334045438,1722703970739,104.20959115,8.907e-05,2]
[334045439,1722703988717,971.77166547,8.907e-05,2]
[334045440,1722703991247,500.0,0.00025286,120]
[334045441,1722703991606,500.0,0.00026999,120]
[334045442,1722703996228,1000.0,0.00025083,120]
[334045443,1722703996592,1000.0,0.00026783,120]
[334045444,1722704004732,500.0,0.00025083,120]
[334045445,1722704012971,200.0,0.00025286,120]
[334045446,1722704036763,165.4,0.0001337,30]
[334045447,1722704184959,5000.0,0.00027,120]
[334045448,1722704407846,848.84,8.219e-05,2]
[334045449,1722704476873,550.74205933,8.219e-05,2]
[334045450,1722704505006,165.4,0.0001337,30]
[334045455,1722704934296,806.39,8.219e-05,2]
[334045505,1722705032054,-1976.69719536,9.592e-05,2]
[334045506,1722705033174,-1132.66280464,9.592e-05,2]
[334045507,1722705033190,-250.0,9.718e-05,2]
[334045508,1722705033200,-200.0,9.72e-05,2]
[334045509,1722705033209,-181.15430097,9.753e-05,2]
[334045510,1722705033219,-185.6,9.754e-05,2]
[334045511,1722705033229,-534.02,9.756e-05,2]
[334045512,1722705033239,-300.0,9.793e-05,2]
[334045513,1722705033248,-496.50862276,9.794e-05,2]
[334045514,1722705033260,-2765.85901417,9.794e-05,2]
[334045515,1722705033272,-20637.63236307,9.794e-05,2]
[334045516,1722705033282,-170.39,9.887e-05,2]
[334045517,1722705033291,-270.0,0.0001,2]
[334045518,1722705033301,-193.75,0.00010188,2]
[334045519,1722705033311,-174.14,0.00010231,2]
[334045520,1722705033320,-22460.5,0.00010231,2]
[334045521,1722705033329,-465.98,0.00010256,2]
[334045522,1722705033338,-400.0,0.000103,3]
[334045523,1722705033347,-193.28,0.00010313,2]
[334045524,1722705033356,-150.99,0.000104,2]
[334045525,1722705033366,-499.99,0.000104,2]
[334045526,1722705033375,-800.0,0.000104,3]
[334045527,1722705033385,-150.0,0.00010458,2]
[334045528,1722705033394,-806.39,0.00010459,2]
[334045529,1722705033403,-1300.0,0.000105,3]
[334045530,1722705033412,-150.99,0.000106,2]
[334045532,1722705033423,-1700.0,0.000106,3]
[334045534,1722705033436,-2100.0,0.000107,3]
[334045536,1722705033447,-300.0,0.00010773,2]
[334045538,1722705033457,-56968.0,0.00010781,2]
[334045540,1722705033467,-155.0,0.00010796,2]
[334045541,1722705033477,-155.0,0.00010796,2]
[334045543,1722705033487,-155.03453405,0.00010796,2]
[334045544,1722705033498,-363.85697976,0.00010796,2]
[334045545,1722705033508,-555.0,0.00010796,2]
[334045546,1722705033518,-155.0,0.00010796,2]
[334045547,1722705033530,-155.0,0.00010796,2]
[334045548,1722705033540,-155.0,0.00010796,2]
[334045549,1722705033550,-177.8180981,0.00010796,2]
[334045550,1722705033560,-400.0,0.00010796,2]
[334045551,1722705033570,-155.0,0.00010796,2]
[334045552,1722705033580,-400.0,0.000108,3]
[334045553,1722705033589,-256.2089,0.000108,2]
[334045554,1722705033599,-30094.889,0.000108,2]
[334045555,1722705033609,-10561.97357273,0.00010899,2]
[334045556,1722705033619,-7812.90806423,0.00010899,2]
[334045557,1722705033628,-185.86124124,0.000109,2]
[334045558,1722705033638,-168.40700016,0.000109,2]
[334045559,1722705033648,-1479.35270892,0.000109,2]
[334045560,1722705033659,-1479.35270892,0.000109,2]
[334045561,1722705033669,-70804.6888,0.000109,2]
[334045562,1722705033685,-400.0,0.000109,3]
[334045563,1722705033695,-574.12914892,0.000109,2]
[334045564,1722705033705,-190.75301146,0.000109,2]
[334045565,1722705033716,-4683.46897098,0.000109,2]
[334045566,1722705033726,-250.0,0.00010959,2]
[334045567,1722705033736,-150.0,0.00010959,2]
[334045568,1722705033746,-534.02,0.00010975,2]
[334045569,1722705033756,-150.0,0.0001099,2]
[334045570,1722705033766,-62669.13749699,0.00011,2]
[334045571,1722705033783,-3545.23594935,0.00011,2]
[334045572,1722705033795,-441.55013377,0.00011,2]
[334045573,1722705033807,-431.74035951,0.00011,2]
[334045574,1722705033819,-3743.94743035,0.00011,2]
[334045575,1722705033831,-529.24457597,0.00011,2]
[334045576,1722705033843,-376.37542403,0.00011,2]
[334045577,1722705033859,-570.02512666,0.00011,2]
[334045661,1722705039364,-6903.18681663,0.00011,2]
[334045663,1722705039375,-283.83287331,0.00011,2]
[334045665,1722705039387,-1185.34288774,0.00011,2]
[334045668,1722705039399,-1214.80253227,0.00011,2]
[334045670,1722705039411,-858.74623956,0.00011,2]
[334045672,1722705039425,-3011.42998001,0.00011,2]
[334045749,1722705040193,-382.60523184,0.00011,2]
[334045752,1722705040206,-477.15775939,0.00011,2]
[334045754,1722705040224,-960.01640894,0.00011,2]
[334045756,1722705040236,-758.055998,0.00011,2]
[334045758,1722705040247,-96602.25241341,0.00011,2]
[334045761,1722705040263,-3142.91921805,0.00011,2]
[334045778,1722705040413,-137429.3312749,0.00011,2]
[334045780,1722705040425,-1056.7785687,0.00011,2]
[334045782,1722705040445,-1273.216,0.00011,2]
[334046026,1722705043437,-756.77499305,0.00011,2]
[334046027,1722705043452,-5616.95453685,0.00011,2]
[334046028,1722705043528,-4568.12145839,0.00011,2]
[334046031,1722705043539,-984.41822152,0.00011,2]
[334046058,1722705043706,-3146.60607242,0.00011,2]
[334046068,1722705043779,-3498.98365073,0.00011,2]
[334046070,1722705043791,-5462.33836078,0.00011,2]
[334046073,1722705043802,-758.19771398,0.00011,2]
[334046078,1722705043849,-498.09121075,0.00011,2]
[334046080,1722705043861,-298.72,0.00011,2]
[334046082,1722705043872,-8496.68988349,0.00011,2]
[334046084,1722705043883,-19544.79940805,0.00011,2]
[334046086,1722705043894,-4049.69644931,0.00011,2]
[334046198,1722705045330,-275.452,0.00011,2]
[334046201,1722705045344,-4135.607814,0.00011,2]
[334046203,1722705045356,-31434.25,0.00011,2]
[334046206,1722705045371,-1447.14298973,0.00011,2]
[334046208,1722705045387,-2829.58704795,0.00011,2]
[334046211,1722705045406,-500.0,0.00011,2]
[334046214,1722705045418,-1662.404714,0.00011,2]
[334046216,1722705045440,-239297.10321505,0.00011,2]
[334046219,1722705045453,-361871.6202388,0.00011,2]
[334046221,1722705045464,-857.70927254,0.00011,2]
[334046323,1722705046377,-5788.61873118,0.00011,2]
[334046336,1722705046499,-1552.95875767,0.00011,2]
[334046344,1722705046570,-1262.68527227,0.00011,2]
[334046351,1722705046636,-1325.35262245,0.00011,2]
[334046353,1722705046647,-1026.0,0.00011,2]
[334046365,1722705046754,-1549.39999999,0.00011,2]
[334046367,1722705046766,-15568.37447631,0.00011,2]
[334046369,1722705046777,-7094.54467962,0.00011,2]
[334046461,1722705053662,165.4,0.0001337,30]
[334046464,1722705073458,224.11,0.000178,120]
[334046474,1722705192268,500.0,0.00025667,120]
[334046478,1722705195131,1000.0,0.00025461,120]
[334046479,1722705195481,1000.0,0.00026783,120]
[334046480,1722705210801,500.0,0.00025461,120]
[334046481,1722705216314,200.0,0.00025667,120]
[334046483,1722705303171,1835.20767798,0.000251,120]
[334046489,1722705514271,165.4,0.0001337,30]
[334046490,1722705570832,799.72,8.438e-05,2]
[334046491,1722705616424,364.72077219,8.438e-05,2]
[334046492,1722705627935,1267.89314635,8.438e-05,2]
[334046493,1722705637574,485.31544336,8.438e-05,2]
[334046494,1722705641391,7572.79673936,8.438e-05,2]
[334046495,1722705657396,308.49156198,8.438e-05,2]
[334046496,1722705665425,1846.85248153,8.438e-05,2]
[334046497,1722705670779,155.0,8.438e-05,2]
[334046501,1722705746847,485.31544336,8.438e-05,2]
[334046505,1722705922018,-1003.33044202,9.862e-05,2]
[334046506,1722705922044,-174.14,9.946e-05,2]
[334046507,1722705922068,-1000.0,9.958e-05,2]
[334046508,1722705922098,-9822.52955798,9.989e-05,2]
[334046509,1722705937574,-12000.0,9.989e-05,2]
[334046520,1722706115147,759.73,8.219e-05,2]
[334046567,1722706233445,-200.10814605,9.939e-05,2]
[334046568,1722706233455,-196.37202567,9.962e-05,2]
[334046569,1722706233466,-3106.0090687,9.962e-05,2]
[334046570,1722706233477,-2181.30685552,9.962e-05,2]
[334046571,1722706233487,-23.39756822,9.962e-05,2]
[334046572,1722706233498,-131.60243178,9.962e-05,2]
[334046573,1722706233508,-2077.47044202,9.989e-05,2]
[334046574,1722706233518,-250.0,0.00010009,2]
[334046575,1722706233528,-4042.3032553,0.00010128,2]
[334046576,1722706233581,-1256.0721124,0.00010128,2]
[334046577,1722706233669,-790.89376691,0.00010128,2]
[334046578,1722706233749,-6077.071,0.00010128,2]
[334046603,1722706238624,-277.09426696,9.962e-05,2]
[334046605,1722706238634,-1888.88166539,0.00010128,2]
[334046607,1722706238644,-1625.49220993,0.00010186,2]
[334046640,1722706239066,-1169.55400002,0.00010186,2]
[334046642,1722706239078,-398.41316651,0.00010186,2]
[334046644,1722706239091,-400.42062354,0.00010186,2]
[334046646,1722706239102,-25.12639838,0.00010228,2]
[334046649,1722706239115,-465.65357015,0.00010228,2]
[334046651,1722706239125,-406.30642985,0.00010261,2]
[334046653,1722706239136,-586.55357015,0.00010261,2]
[334046655,1722706239146,-135.99392195,0.000103,3]
[334046660,1722706239183,-264.00607805,0.000103,3]
[334046662,1722706239192,-25.97542629,0.00010323,2]
[334046664,1722706239203,-225.28457371,0.00010323,2]
[334046666,1722706239213,-627.25239374,0.000104,3]
[334046668,1722706239224,-172.74760626,0.000104,3]
[334046670,1722706239234,-522.87689315,0.0001047,2]
[334046777,1722706240357,-236.85310685,0.0001047,2]
[334046779,1722706240366,-1200.0,0.000105,3]
[334046781,1722706240376,-499.99,0.000105,2]
[334046782,1722706240385,-1600.0,0.000106,3]
[334046784,1722706240394,-581.86859181,0.000107,3]
[334046786,1722706240406,-1418.13140819,0.000107,3]
[334046788,1722706240415,-400.0,0.000108,3]
[334046790,1722706240425,-150.99,0.00010847,2]
[334046791,1722706240434,-548.33213,0.0001089,2]
[334046793,1722706240443,-150.0,0.00010899,2]
[334046795,1722706240453,-171.05130715,0.000109,2]
[334046796,1722706240461,-168.40700015,0.000109,2]
[334046798,1722706240471,-165.8466,0.000109,2]
[334046800,1722706240480,-607.3279,0.000109,2]
[334046801,1722706240489,-400.0,0.000109,3]
[334046803,1722706240498,-190.75301146,0.000109,2]
[334046804,1722706240507,-6033.34928335,0.000109,2]
[334046807,1722706240519,-1793.3756381,0.000109,2]
[334046808,1722706240528,-1148.2582978,0.000109,2]
[334046810,1722706240537,-238.17491204,0.000109,2]
[334046812,1722706240547,-348.16490622,0.000109,2]
[334046814,1722706240556,-236.13645283,0.000109,2]
[334046816,1722706240566,-185.92,0.00010906,2]
[334046818,1722706240575,-14678.12300399,0.0001093,2]
[334046839,1722706240813,-4205.4734115,0.0001093,2]
[334046841,1722706240825,-250.0,0.00010959,2]
[334046842,1722706240835,-150.0,0.00010959,2]
[334046844,1722706240844,-190.75301146,0.00010972,2]
[334046846,1722706240855,-758.59968379,0.00010999,2]
[334046848,1722706240865,-1638.70455054,0.00010999,2]
[334046850,1722706240874,-20496.57152994,0.00010999,2]
[334046852,1722706240884,-36231.75079403,0.00011,2]
[334046855,1722706240913,-378523.41275111,0.00011,2]
[334046857,1722706240929,-1685.4887346,0.00011,2]
[334046862,1722706240966,-470.73536654,0.00011,2]
[334046869,1722706241044,-1130.32059321,0.00011,2]
[334046871,1722706241055,-1034.355,0.00011,2]
[334046873,1722706241066,-2198.49212684,0.00011,2]
[334046875,1722706241077,-290.01999999,0.00011,2]
[334047066,1722706243319,-712.04599,0.00011,2]
[334047068,1722706243335,-463.46817268,0.00011,2]
[334047071,1722706243347,-738.08592761,0.00011,2]
[334047079,1722706243420,-6832.44947216,0.00011,2]
[334047081,1722706243438,-3426.3971221,0.00011,2]
[334047084,1722706243461,-256.488175,0.00011,2]
[334047086,1722706243474,-227812.23593789,0.00011,2]
[334047089,1722706243491,-52720.20783102,0.00011,2]
[334047098,1722706243578,-11552.99633295,0.00011,2]
[334047165,1722706244908,-3795.98515674,0.00011,2]
[334047166,1722706244919,-5736.28546255,0.00011,2]
[334047177,1722706246505,-23765.70794367,0.00011,2]
[334047178,1722706246538,-16878.07989239,0.00011,2]
[334047179,1722706246612,-74562.37432025,0.00011,2]
[334047180,1722706246623,-5256.37160202,0.00011,2]
[334047235,1722706247397,-6056.99980421,0.00011,2]
[334047542,1722706397701,1000.0,0.00025367,120]
[334047543,1722706398098,1000.0,0.00026783,120]
[334047544,1722706405540,500.0,0.00025367,120]
[334047545,1722706411910,200.0,0.00025571,120]
[334047546,1722706534674,156.35,0.0001337,30]
[334047547,1722706583429,683.75,8.312e-05,2]
[334047548,1722706608478,291.36870266,8.312e-05,2]
[334047549,1722706608531,871.55601316,8.312e-05,2]
[334047550,1722706609495,1309.06994225,8.312e-05,2]
[334047551,1722706610028,1267.89314635,8.312e-05,2]
[334047552,1722706611547,363.72095219,8.312e-05,2]
[334047553,1722706615821,155.0,8.312e-05,2]
[334047554,1722706616640,485.31544336,8.312e-05,2]
[334047555,1722706618645,155.2039469,8.312e-05,2]
[334047556,1722706618833,158.93327115,8.312e-05,2]
[334047557,1722706620403,790.43228125,8.312e-05,2]
[334047558,1722706620933,263.32159875,8.312e-05,2]
[334047559,1722706627413,7572.79673936,8.312e-05,2]
[334047560,1722706628383,18347.29122316,8.312e-05,2]
[334047561,1722706630300,411.8268421,8.312e-05,2]
[334047562,1722706630988,692.66620014,8.312e-05,2]
[334047563,1722706632009,155.0,8.312e-05,2]
[334047564,1722706803012,150.0,8.312e-05,2]
[334047565,1722706803227,150.0,8.312e-05,2]
[334047566,1722706803433,150.0,8.312e-05,2]
[334047567,1722706803623,150.0,8.312e-05,2]
[334047568,1722706803820,150.0,8.312e-05,2]
[334047569,1722706804109,150.0,8.312e-05,2]
[334047570,1722706804336,150.0,8.312e-05,2]
[334047571,1722706804549,150.0,8.312e-05,2]
[334047572,1722706804799,150.0,8.312e-05,2]
[334047573,1722706808115,150.0,8.312e-05,2]
[334047574,1722706808350,150.0,8.312e-05,2]
[334047575,1722706808548,150.0,8.312e-05,2]
[334047576,1722706808800,150.0,8.312e-05,2]
[334047577,1722706808982,150.0,8.312e-05,2]
[334047578,1722706809151,150.0,8.312e-05,2]
[334047579,1722706809331,150.0,8.312e-05,2]
[334047580,1722706809518,150.0,8.312e-05,2]
[334047581,1722706809704,150.0,8.312e-05,2]
[334047582,1722706809900,150.0,8.312e-05,2]
[334047583,1722706810320,150.0,8.312e-05,2]
[334047584,1722706810521,150.0,8.312e-05,2]
[334047585,1722706810723,150.0,8.312e-05,2]
[334047586,1722706810944,150.0,8.312e-05,2]
[334047587,1722706811109,150.0,8.312e-05,2]
[334047588,1722706811302,150.0,8.312e-05,2]
[334047589,1722706811498,150.0,8.312e-05,2]
[334047590,1722706811716,150.0,8.312e-05,2]
[334047591,1722706811909,197.42479178,8.312e-05,2]
[334047593,1722707121023,23200.0,0.00027,120]
[334047595,1722707195496,649.56,8.219e-05,2]
[334047600,1722707319091,1370.46929519,8.219e-05,2]
[334047601,1722707343379,227.60153513,8.219e-05,2]
[334047602,1722707343666,3068.13856627,8.219e-05,2]
[334047603,1722707353410,20375.34613072,8.219e-05,2]
[334047604,1722707354510,291.25924628,8.219e-05,2]
[334047606,1722707363147,90418.83010505,8.219e-05,2]
[334047633,1722707366100,425.56217622,8.219e-05,2]
[334047634,1722707366542,2563.7675372,8.219e-05,2]
[334047639,1722707371932,155.0,8.219e-05,2]
[334047640,1722707371999,150.0,0.00027,120]
[334047641,1722707373093,7572.79673936,8.219e-05,2]
[334047642,1722707375099,1224.01184071,8.219e-05,2]
[334047644,1722707382532,1267.89314635,8.219e-05,2]
[334047645,1722707382797,1633.19859182,8.219e-05,2]
[334047646,1722707383061,1309.06994225,8.219e-05,2]
[334047648,1722707388414,790.55097652,8.219e-05,2]
[334047650,1722707397812,1633.19859182,8.219e-05,2]
[334047652,1722707414437,1369.63780657,8.219e-05,2]
[334047653,1722707416307,1350.0,0.00027,120]
[334047675,1722707431442,-227.60153513,9.962e-05,2]
[334047676,1722707431452,-155.0,9.962e-05,2]
[334047677,1722707431461,-3165.49954425,9.962e-05,2]
[334047678,1722707431472,-2969.0820525,9.962e-05,2]
[334047679,1722707431483,-9246.60172865,9.962e-05,2]
[334047680,1722707431492,-2563.7675372,9.962e-05,2]
[334047681,1722707431502,-3068.13856627,9.962e-05,2]
[334047682,1722707431511,-425.56217622,9.962e-05,2]
[334047683,1722707431520,-155.0913307,9.962e-05,2]
[334047684,1722707431529,-312.60607713,9.962e-05,2]
[334047685,1722707431541,-891.68121634,9.962e-05,2]
[334047686,1722707431551,-1309.06994225,9.962e-05,2]
[334047687,1722707431560,-250.0,0.0001004,2]
[334047688,1722707431570,-800.0,0.00010067,2]
[334047689,1722707431579,-174.0,0.00010075,2]
[334047690,1722707431589,-16067.61,0.00010076,2]
[334047691,1722707431598,-174.14,0.00010084,2]
[334047692,1722707431607,-807.15,0.00010093,2]
[334047693,1722707431617,-201.01,0.00010127,2]
[334047694,1722707431626,-198.99,0.0001013,2]
[334047695,1722707431636,-150.0,0.00010137,2]
[334047696,1722707431645,-649.56,0.00010481,2]
[334047697,1722707431655,-499.99,0.00010481,2]
[334047698,1722707431664,-150.0,0.00010799,2]
[334047699,1722707431674,-37869.27958319,0.000108,2]
[334047700,1722707431683,-241.04299152,0.000109,2]
[334047701,1722707431693,-327.775,0.000109,2]
[334047702,1722707431702,-684.20522848,0.000109,2]
[334047703,1722707431711,-168.40700015,0.000109,2]
[334047704,1722707431721,-2891.6364,0.000109,2]
[334047705,1722707431731,-490.9518,0.000109,2]
[334047706,1722707431740,-7101.82558173,0.000109,2]
[334047707,1722707431751,-15027.33826198,0.000109,2]
[334047708,1722707431760,-348.16490621,0.000109,2]
[334047709,1722707431770,-250.0,0.00010959,2]
[334047710,1722707431779,-355.47427086,0.00010997,2]
[334047711,1722707431790,-234.27815422,0.00010999,2]
[334047712,1722707431800,-992.0,0.00011,2]
[334047713,1722707431809,-584259.51224559,0.00011,2]
[334047714,1722707431821,-1650.99,0.00011,2]
[334047715,1722707431832,-322.91174239,0.00011,2]
[334047716,1722707431843,-576.41012845,0.00011,2]
[334047717,1722707431854,-581.06799919,0.00011,2]
[334047718,1722707431866,-283.21327208,0.00011,2]
[334047719,1722707431881,-3641.40814063,0.00011,2]
[334047720,1722707431892,-1049480.43390644,0.00011,2]
[334047721,1722707431907,-11436.0441865,0.00011,2]
[334047722,1722707432111,-716.59388063,0.00011,2]
[334047723,1722707432123,-1931.16017973,0.00011,2]
[334047724,1722707432134,-3378.75833065,0.00011,2]
[334047725,1722707432149,-504.80687592,0.00011,2]
[334047726,1722707432160,-280.56667432,0.00011,2]
[334047727,1722707432171,-2669.37803247,0.00011,2]
[334047728,1722707432183,-746.44510063,0.00011,2]
[334047729,1722707432199,-47555.61187118,0.00011,2]
[334047730,1722707432211,-46496.65951031,0.00011,2]
[334047731,1722707432224,-2005.57355483,0.00011,2]
[334047748,1722707437502,-450.95372915,9.962e-05,2]
[334047749,1722707437514,-816.9394172,9.962e-05,2]
[334047750,1722707437524,-3000.0,0.0001089,2]
[334047751,1722707437534,-846.0,0.00011,2]
[334047752,1722707437550,-25715.64654341,0.00011,2]
[334047753,1722707437562,-6500.0,0.00011,2]
[334047754,1722707437577,-843.27,0.00011,2]
[334047755,1722707437673,-296.9710123,0.00011,2]
[334047756,1722707437685,-163858.33119511,0.00011,2]
[334047757,1722707437696,-1217.86,0.00011,2]
[334047758,1722707437710,-12573.41437419,0.00011,2]
[334047759,1722707437721,-2348.40046312,0.00011,2]
[334047760,1722707437732,-1665.638975,0.00011,2]
[334047761,1722707437754,-647.5310671,0.00011,2]
[334047878,1722707439177,155.0,8.219e-05,2]
[334047926,1722707439639,-267.88380043,0.00010959,2]
[334047928,1722707439650,-65.63619957,0.00010959,2]
[334047930,1722707439660,-1884.64355418,0.00011,2]
[334047932,1722707439671,-571.765,0.00011,2]
[334047938,1722707439724,-73282.1245874,0.00011,2]
[334047940,1722707439735,-323.19502115,0.00011,2]
[334047946,1722707439807,-3145.404275,0.00011,2]
[334047948,1722707439819,-6618.563923,0.00011,2]
[334047950,1722707439830,-10828.216,0.00011,2]
[334047952,1722707439841,-687.06,0.00011,2]
[334047954,1722707439852,-335.545,0.00011,2]
[334047956,1722707439862,-466.38107,0.00011,2]
[334047958,1722707439874,-118222.21737189,0.00011,2]
[334047959,1722707439885,-16178.75380641,0.00011,2]
[334047961,1722707439896,-22898.52215549,0.00011,2]
[334047963,1722707439907,-521.31889551,0.00011,2]
[334047965,1722707439918,-7627.54303608,0.00011,2]
[334047967,1722707439929,-6195.30092757,0.00011,2]
[334047969,1722707439940,-4478.44625082,0.00011,2]
[334047971,1722707439951,-10625.59365678,0.00011,2]
[334047973,1722707439962,-2123.07399969,0.00011,2]
[334047975,1722707439973,-1213.13686397,0.00011,2]
[334047977,1722707439983,-354.33584849,0.00011,2]
[334047979,1722707439994,-10477.9876383,0.00011,2]
[334048205,1722707442812,-531.2423039,9.962e-05,2]
[334048209,1722707442843,-259.07128208,9.962e-05,2]
[334048211,1722707442852,-955.72690153,0.000107,2]
[334048250,1722707443054,-1997.60901604,0.000107,2]
[334048253,1722707443066,-24237.25678243,0.000107,2]
[334048255,1722707443075,-209.2893539,0.000109,2]
[334048257,1722707443085,-496740.48077597,0.00011,2]
[334048259,1722707443102,-2796.88342727,0.00011,2]
[334048261,1722707443113,-514.96451937,0.00011,2]
[334048266,1722707443156,-2499.6238,0.00011,2]
[334048269,1722707443171,-1016.18242901,0.00011,2]
[334048271,1722707443182,-5427.39922608,0.00011,2]
[334048273,1722707443193,-3700.47896394,0.00011,2]
[334048282,1722707443275,-33724.11572845,0.00011,2]
[334048423,1722707444763,-301.25385499,0.00011,2]
[334048425,1722707444774,-68166.51069546,0.00011,2]
[334048428,1722707444790,-1745.585,0.00011,2]
[334048430,1722707444806,-1025.58527595,0.00011,2]
[334048531,1722707445767,-763.0,0.00011,2]
[334048533,1722707445776,-3262.0453594,0.00011,2]
[334048539,1722707445822,-450.0,0.00011,2]
[334048541,1722707445834,-769.67,0.00011,2]
[334048543,1722707445845,-571.94053383,0.00011,2]
[334048545,1722707445857,-867.70348811,0.00011,2]
[334048547,1722707445870,-1065.24164005,0.00011,2]
[334048553,1722707445910,-395.86329434,0.00011,2]
[334048557,1722707445944,-4116.0002468,0.00011,2]
[334048559,1722707445956,-817.32850703,0.00011,2]
[334048784,1722707448742,961.8087359,8.219e-05,2]
[334049146,1722707505957,17489.03673925,8.219e-05,2]
[334049147,1722707553522,166.07354846,8.219e-05,2]
[334049148,1722707556472,452.27944176,8.219e-05,2]
[334049149,1722707565430,789.19765135,8.219e-05,2]
[334049150,1722707570402,22367.91093977,0.00025,60]
[334049151,1722707589885,3068.13856627,8.219e-05,2]
[334049152,1722707591202,1000.0,0.00025461,120]
[334049153,1722707596437,500.0,0.00025461,120]
[334049154,1722707610446,200.0,0.00025667,120]
[334049155,1722707820780,-300.0,9.861e-05,2]
[334049156,1722707821883,99.4,9.861e-05,2]
[334049157,1722707886845,176.7,9.269e-05,2]
[334049158,1722707922634,807.29,8.219e-05,2]
[334049159,1722707956630,1267.89314635,9.269e-05,2]
[334049160,1722707960830,200.0,9.266e-05,2]
[334049161,1722707980548,354.28,9.321e-05,2]
[334049162,1722707987083,1309.06994225,9.269e-05,2]
[334049163,1722708007429,80000.0,0.00027,120]
[334049164,1722708023096,9021.54,0.00027,120]
[334049165,1722708061993,250.0,9.376e-05,2]
[334049166,1722708228492,23614.34,9.382e-05,2]
[334049167,1722708270500,654.49,9.39e-05,2]
[334049168,1722708343564,2391.09,9.416e-05,2]
[334049169,1722708356360,216.65,9.427e-05,2]
[334049171,1722708454364,199.19,9.436e-05,2]
[334049172,1722708493081,716.57,9.332e-05,2]
[334049173,1722708512500,3500.0,0.00025,62]
[334049174,1722708543998,766.92,8.219e-05,2]
[334049214,1722708575051,250.0,9.279e-05,2]
[334049234,1722708631729,-399.3847,9.761e-05,2]
[334049235,1722708631739,-225.1053,9.762e-05,2]
[334049236,1722708631878,-402.36488711,9.762e-05,2]
[334049237,1722708631887,-559.6063,9.762e-05,2]
[334049238,1722708631897,-161.0786,9.762e-05,2]
[334049239,1722708631906,-402.3,9.878e-05,2]
[334049240,1722708631916,-402.3,9.88e-05,2]
[334049241,1722708631925,-402.3,9.883e-05,2]
[334049242,1722708631934,-402.3,9.886e-05,2]
[334049243,1722708631944,-150.0,9.888e-05,2]
[334049244,1722708631953,-402.3,9.888e-05,2]
[334049245,1722708631962,-253.62555889,9.891e-05,2]
[334049246,1722708631974,-148.67444111,9.891e-05,2]
[334049247,1722708631983,-1742.75,9.891e-05,2]
[334049248,1722708631992,-499.99,9.891e-05,2]
[334049249,1722708632001,-3340.88,9.891e-05,2]
[334049250,1722708632010,-45.83270835,9.892e-05,2]